[Event "*** Titled Tuesday Blitz"]
[Site "Chess.com"]
[Date "2020.03.03"]
[Round "2"]
[White "SlavenPastar"]
[Black "norwaytoadog"]
[Result "0-1"]
[WhiteElo "2488"]
[BlackElo "2254"]
[TimeControl "180+1"]
[EndTime "9:20:37 PST"]
[Termination "norwaytoadog won by checkmate"]

1. d4 {[%clk 0:03:00.9]} 1... Nf6 {[%clk 0:02:59.1]} 2. c4 {[%clk 0:02:56.3]}
2... e6 {[%clk 0:02:59.3]} 3. Nc3 {[%clk 0:02:54.1]} 3... Bb4 {[%clk 0:02:59.3]}
4. e3 {[%clk 0:02:54.5]} 4... O-O {[%clk 0:02:58.4]} 5. Bd3 {[%clk 0:02:54.9]}
5... c5 {[%clk 0:02:57.2]} 6. Bd2 {[%clk 0:02:55]} 6... b6 {[%clk 0:02:51.7]} 7.
Nge2 {[%clk 0:02:54.6]} 7... Bb7 {[%clk 0:02:51.2]} 8. f3 {[%clk 0:02:55]} 8...
cxd4 {[%clk 0:02:48.1]} 9. exd4 {[%clk 0:02:53.4]} 9... d5 {[%clk 0:02:47.3]}
10. cxd5 {[%clk 0:02:54.3]} 10... Nxd5 {[%clk 0:02:44.5]} 11. O-O {[%clk
0:02:54]} 11... Be7 {[%clk 0:02:42.2]} 12. a3 {[%clk 0:02:51.4]} 12... Nc6
{[%clk 0:02:38.1]} 13. Ne4 {[%clk 0:02:24.1]} 13... f5 {[%clk 0:02:27.8]} 14.
Nf2 {[%clk 0:02:13.2]} 14... Bf6 {[%clk 0:02:22.9]} 15. Qa4 {[%clk 0:02:12.8]}
15... a6 {[%clk 0:02:19.2]} 16. Bc3 {[%clk 0:01:59.6]} 16... b5 {[%clk 0:02:15]}
17. Qb3 {[%clk 0:01:57.8]} 17... Qb6 {[%clk 0:02:07.8]} 18. Rad1 {[%clk
0:01:53.6]} 18... Rad8 {[%clk 0:01:43.9]} 19. Rfe1 {[%clk 0:01:49.3]} 19... Rfe8
{[%clk 0:01:41.4]} 20. a4 {[%clk 0:01:34.2]} 20... b4 {[%clk 0:01:36.4]} 21. Bd2
{[%clk 0:01:31.4]} 21... Nxd4 {[%clk 0:01:26.6]} 22. Nxd4 {[%clk 0:01:16.6]}
22... Bxd4 {[%clk 0:01:24.7]} 23. Re2 {[%clk 0:01:17]} 23... Be3 {[%clk
0:01:03.9]} 24. Bc4 {[%clk 0:00:59.2]} 24... Bxd2 {[%clk 0:00:56.9]} 25. Rexd2
{[%clk 0:00:53.3]} 25... h6 {[%clk 0:00:48.6]} 26. Rd4 {[%clk 0:00:49.5]} 26...
Kh7 {[%clk 0:00:43.2]} 27. Bxd5 {[%clk 0:00:28.5]} 27... Rxd5 {[%clk 0:00:42.4]}
28. Qxb4 {[%clk 0:00:28.8]} 28... Qc7 {[%clk 0:00:29.7]} 29. Rxd5 {[%clk
0:00:27.6]} 29... Bxd5 {[%clk 0:00:29.2]} 30. Qd4 {[%clk 0:00:17.9]} 30... Rb8
{[%clk 0:00:26.3]} 31. Nd3 {[%clk 0:00:14.8]} 31... Qb6 {[%clk 0:00:23.9]} 32.
Qxb6 {[%clk 0:00:10.4]} 32... Rxb6 {[%clk 0:00:24.1]} 33. Rd2 {[%clk 0:00:08.4]}
33... a5 {[%clk 0:00:22.7]} 34. Ne5 {[%clk 0:00:05.6]} 34... g5 {[%clk
0:00:21.4]} 35. Kf2 {[%clk 0:00:05.1]} 35... Kg7 {[%clk 0:00:21.1]} 36. Rc2
{[%clk 0:00:05.3]} 36... Rb3 {[%clk 0:00:19]} 37. Nd7 {[%clk 0:00:04.2]} 37...
Kf7 {[%clk 0:00:17.6]} 38. Nc5 {[%clk 0:00:04.5]} 38... Rb4 {[%clk 0:00:15.4]}
39. Ke2 {[%clk 0:00:04.4]} 39... e5 {[%clk 0:00:13.6]} 40. Rd2 {[%clk
0:00:04.3]} 40... Bc4+ {[%clk 0:00:12.8]} 41. Kf2 {[%clk 0:00:04.9]} 41... Be6
{[%clk 0:00:08.7]} 42. Rc2 {[%clk 0:00:02.7]} 42... Rc4 {[%clk 0:00:06.5]} 43.
Rxc4 {[%clk 0:00:02.7]} 43... Bxc4 {[%clk 0:00:06.7]} 44. Nb7 {[%clk 0:00:03.4]}
44... Bb3 {[%clk 0:00:06.3]} 45. Nxa5 {[%clk 0:00:04.3]} 45... Bxa4 {[%clk
0:00:06.4]} 46. Nc4 {[%clk 0:00:04.8]} 46... Ke6 {[%clk 0:00:05.7]} 47. Nb6
{[%clk 0:00:05.1]} 47... Bb5 {[%clk 0:00:05]} 48. Nc8 {[%clk 0:00:04.6]} 48...
Kd7 {[%clk 0:00:04.5]} 49. Na7 {[%clk 0:00:03.9]} 49... Ba4 {[%clk 0:00:04.1]}
50. g4 {[%clk 0:00:04.4]} 50... f4 {[%clk 0:00:02.6]} 51. h3 {[%clk 0:00:03.4]}
51... Kc7 {[%clk 0:00:02.6]} 52. b3 {[%clk 0:00:03]} 52... Bd7 {[%clk 0:00:02]}
53. b4 {[%clk 0:00:02.1]} 53... Kb7 {[%clk 0:00:02.3]} 54. h4 {[%clk 0:00:02.2]}
54... Kxa7 {[%clk 0:00:02.2]} 55. hxg5 {[%clk 0:00:02.5]} 55... hxg5 {[%clk
0:00:02.6]} 56. Ke2 {[%clk 0:00:03.4]} 56... Kb6 {[%clk 0:00:02.8]} 57. Kd3
{[%clk 0:00:04.3]} 57... Kc6 {[%clk 0:00:02.9]} 58. Ke4 {[%clk 0:00:05.2]} 58...
Kd6 {[%clk 0:00:02.8]} 59. Kd3 {[%clk 0:00:05.5]} 59... Bb5+ {[%clk 0:00:03]}
60. Ke4 {[%clk 0:00:05.9]} 60... Bc6+ {[%clk 0:00:03.4]} 61. Kf5 {[%clk
0:00:06.4]} 61... Bxf3 {[%clk 0:00:03.5]} 62. Kxg5 {[%clk 0:00:07.2]} 62... Bc6
{[%clk 0:00:03.1]} 63. Kh4 {[%clk 0:00:07.7]} 63... e4 {[%clk 0:00:03.1]} 64. g5
{[%clk 0:00:08.4]} 64... Ke6 {[%clk 0:00:03.1]} 65. b5 {[%clk 0:00:08.3]} 65...
Bb7 {[%clk 0:00:02.3]} 66. Kg4 {[%clk 0:00:09.2]} 66... f3 {[%clk 0:00:01.9]}
67. Kg3 {[%clk 0:00:09.8]} 67... Kf5 {[%clk 0:00:01.6]} 68. g6 {[%clk
0:00:09.7]} 68... Kxg6 {[%clk 0:00:01.9]} 69. Kf2 {[%clk 0:00:10.4]} 69... Kf5
{[%clk 0:00:02.2]} 70. Ke3 {[%clk 0:00:11.3]} 70... Ke5 {[%clk 0:00:02.4]} 71.
b6 {[%clk 0:00:12.2]} 71... Bc6 {[%clk 0:00:02.6]} 72. Kf2 {[%clk 0:00:12.6]}
72... Kf4 {[%clk 0:00:02.9]} 73. Kf1 {[%clk 0:00:13]} 73... e3 {[%clk
0:00:03.2]} 74. b7 {[%clk 0:00:13.8]} 74... Bxb7 {[%clk 0:00:03.1]} 75. Ke1
{[%clk 0:00:14.4]} 75... f2+ {[%clk 0:00:02.9]} 76. Kf1 {[%clk 0:00:15.3]} 76...
Ba6+ {[%clk 0:00:03]} 77. Kg2 {[%clk 0:00:15.5]} 77... f1=Q+ {[%clk 0:00:03.2]}
78. Kh2 {[%clk 0:00:16.4]} 78... Qf2+ {[%clk 0:00:03.4]} 79. Kh1 {[%clk
0:00:16.8]} 79... Bb7# {[%clk 0:00:03.5]} 0-1

[Event "*** Titled Tuesday Blitz"]
[Site "Chess.com"]
[Date "2020.03.03"]
[Round "2"]
[White "Volodar_Murzin"]
[Black "Chessalary"]
[Result "1-0"]
[WhiteElo "2693"]
[BlackElo "2219"]
[TimeControl "180+1"]
[EndTime "9:20:40 PST"]
[Termination "Volodar_Murzin won on time"]

1. e4 {[%clk 0:03:00.9]} 1... c5 {[%clk 0:02:59.7]} 2. Nf3 {[%clk 0:03:00.4]}
2... d6 {[%clk 0:03:00.1]} 3. Bb5+ {[%clk 0:02:57.1]} 3... Bd7 {[%clk
0:02:59.5]} 4. Bxd7+ {[%clk 0:02:56.6]} 4... Qxd7 {[%clk 0:03:00.3]} 5. O-O
{[%clk 0:02:56.6]} 5... Nc6 {[%clk 0:03:00.5]} 6. c3 {[%clk 0:02:54.8]} 6... Nf6
{[%clk 0:02:50.2]} 7. d4 {[%clk 0:02:53.3]} 7... cxd4 {[%clk 0:02:49.5]} 8. cxd4
{[%clk 0:02:52.8]} 8... Nxe4 {[%clk 0:02:45.8]} 9. d5 {[%clk 0:02:51.1]} 9...
Ne5 {[%clk 0:02:46.3]} 10. Nxe5 {[%clk 0:02:49.8]} 10... dxe5 {[%clk 0:02:46.8]}
11. Re1 {[%clk 0:02:49.7]} 11... Nf6 {[%clk 0:02:46.5]} 12. Nc3 {[%clk
0:02:49.1]} 12... g6 {[%clk 0:02:45.4]} 13. Rxe5 {[%clk 0:02:45.8]} 13... Bg7
{[%clk 0:02:45.7]} 14. Bg5 {[%clk 0:02:38.8]} 14... O-O {[%clk 0:02:35]} 15. Qe2
{[%clk 0:02:37.5]} 15... Rfe8 {[%clk 0:02:30.4]} 16. Re1 {[%clk 0:02:36.1]}
16... Kf8 {[%clk 0:02:24.2]} 17. Qf3 {[%clk 0:02:11.4]} 17... h6 {[%clk
0:02:05]} 18. Bh4 {[%clk 0:01:57.7]} 18... Rad8 {[%clk 0:01:51]} 19. h3 {[%clk
0:01:49.4]} 19... Ng8 {[%clk 0:01:49.7]} 20. R5e2 {[%clk 0:01:21.9]} 20... Nf6
{[%clk 0:01:13.9]} 21. a4 {[%clk 0:00:35.6]} 21... g5 {[%clk 0:01:01.9]} 22. Bg3
{[%clk 0:00:35.7]} 22... g4 {[%clk 0:01:01.8]} 23. hxg4 {[%clk 0:00:34.3]} 23...
Qxg4 {[%clk 0:01:02.7]} 24. Qxg4 {[%clk 0:00:29.7]} 24... Nxg4 {[%clk
0:01:02.7]} 25. Nb5 {[%clk 0:00:30.3]} 25... Rd7 {[%clk 0:00:54.3]} 26. d6
{[%clk 0:00:21.9]} 26... e6 {[%clk 0:00:50.6]} 27. Nxa7 {[%clk 0:00:21.9]} 27...
Ra8 {[%clk 0:00:40.6]} 28. Rc2 {[%clk 0:00:20.4]} 28... Bxb2 {[%clk 0:00:31.4]}
29. Nb5 {[%clk 0:00:13.4]} 29... Bf6 {[%clk 0:00:24.1]} 30. f3 {[%clk
0:00:11.6]} 30... Rxa4 {[%clk 0:00:15.3]} 31. fxg4 {[%clk 0:00:11.7]} 31... Rxg4
{[%clk 0:00:16.2]} 32. Bf2 {[%clk 0:00:12.1]} 32... Rb4 {[%clk 0:00:15.1]} 33.
Rc7 {[%clk 0:00:11.3]} 33... Ke8 {[%clk 0:00:13.6]} 34. Na3 {[%clk 0:00:06.9]}
34... Rxd6 {[%clk 0:00:09.6]} 35. Bc5 {[%clk 0:00:04.4]} 35... Bd4+ {[%clk
0:00:10]} 36. Bxd4 {[%clk 0:00:04.6]} 36... Rdxd4 {[%clk 0:00:10.9]} 37. Nc2
{[%clk 0:00:05.1]} 37... Rbc4 {[%clk 0:00:10.2]} 38. Nxd4 {[%clk 0:00:04.3]}
38... Rxc7 {[%clk 0:00:10.1]} 39. Rb1 {[%clk 0:00:05.1]} 39... Kd7 {[%clk
0:00:09.3]} 40. Rb6 {[%clk 0:00:05.7]} 40... Rc4 {[%clk 0:00:08.9]} 41. Nf3
{[%clk 0:00:03.1]} 41... Kc7 {[%clk 0:00:08.3]} 42. Rb3 {[%clk 0:00:03.6]} 42...
f6 {[%clk 0:00:08.3]} 43. Kf2 {[%clk 0:00:03.9]} 43... e5 {[%clk 0:00:07.6]} 44.
Ke3 {[%clk 0:00:03.7]} 44... Kc6 {[%clk 0:00:06.8]} 45. Nd2 {[%clk 0:00:04.2]}
45... Rd4 {[%clk 0:00:06.2]} 46. Ne4 {[%clk 0:00:04]} 46... f5 {[%clk
0:00:05.4]} 47. Nf2 {[%clk 0:00:04.6]} 47... b5 {[%clk 0:00:05.3]} 48. Nd3
{[%clk 0:00:04.7]} 48... Re4+ {[%clk 0:00:04.3]} 49. Kf3 {[%clk 0:00:04.6]}
49... Kb6 {[%clk 0:00:01.8]} 50. g3 {[%clk 0:00:02.3]} 50... Rd4 {[%clk
0:00:02.7]} 51. Nxe5 {[%clk 0:00:01.4]} 51... b4 {[%clk 0:00:03.1]} 52. Nf7
{[%clk 0:00:01.9]} 52... Kb5 {[%clk 0:00:03.4]} 53. Nxh6 {[%clk 0:00:02.3]}
53... Ka4 {[%clk 0:00:03.9]} 54. Nxf5 {[%clk 0:00:02.5]} 54... Rc4 {[%clk
0:00:02.7]} 55. Rb1 {[%clk 0:00:01.5]} 55... b3 {[%clk 0:00:03.6]} 56. Ne3
{[%clk 0:00:01.9]} 56... Rc3 {[%clk 0:00:03.6]} 57. g4 {[%clk 0:00:02.4]} 57...
Ka3 {[%clk 0:00:03.8]} 58. Kf4 {[%clk 0:00:03.1]} 58... b2 {[%clk 0:00:03.8]}
59. Rg1 {[%clk 0:00:03.7]} 59... Ka2 {[%clk 0:00:03.3]} 60. Rg2 {[%clk
0:00:04.1]} 60... Ka1 {[%clk 0:00:02.4]} 61. Rxb2 {[%clk 0:00:04.4]} 61... Kxb2
{[%clk 0:00:01.9]} 62. Nd1+ {[%clk 0:00:04.9]} 1-0

[Event "*** Titled Tuesday Blitz"]
[Site "Chess.com"]
[Date "2020.03.03"]
[Round "2"]
[White "DishonorOnYourCow"]
[Black "dlp300"]
[Result "1-0"]
[WhiteElo "2277"]
[BlackElo "2690"]
[TimeControl "180+1"]
[EndTime "9:20:52 PST"]
[Termination "DishonorOnYourCow won by resignation"]

1. d4 {[%clk 0:03:00.9]} 1... Nf6 {[%clk 0:02:39.4]} 2. c4 {[%clk 0:03:00.9]}
2... e6 {[%clk 0:02:37.1]} 3. Nf3 {[%clk 0:03:00]} 3... b6 {[%clk 0:02:37]} 4.
g3 {[%clk 0:02:59.4]} 4... Bb7 {[%clk 0:02:36]} 5. Bg2 {[%clk 0:02:59]} 5... Be7
{[%clk 0:02:36.6]} 6. O-O {[%clk 0:02:58.3]} 6... O-O {[%clk 0:02:36.9]} 7. Nc3
{[%clk 0:02:58.2]} 7... Ne4 {[%clk 0:02:37.3]} 8. Nxe4 {[%clk 0:02:49.7]} 8...
Bxe4 {[%clk 0:02:38.2]} 9. Bf4 {[%clk 0:02:49.3]} 9... d6 {[%clk 0:02:32.4]} 10.
Qc1 {[%clk 0:02:44.3]} 10... Nd7 {[%clk 0:02:31.1]} 11. Qe3 {[%clk 0:02:38.4]}
11... Bb7 {[%clk 0:02:19.8]} 12. Rfd1 {[%clk 0:02:35.4]} 12... h6 {[%clk
0:01:45.2]} 13. Qd3 {[%clk 0:02:32.9]} 13... Nf6 {[%clk 0:01:41.2]} 14. Nd2
{[%clk 0:02:28.2]} 14... Bxg2 {[%clk 0:01:39.2]} 15. Kxg2 {[%clk 0:02:29.1]}
15... Nh5 {[%clk 0:01:36.9]} 16. Be3 {[%clk 0:02:22.5]} 16... f5 {[%clk
0:01:36.8]} 17. f4 {[%clk 0:02:07.4]} 17... Nf6 {[%clk 0:01:29.4]} 18. Rac1
{[%clk 0:02:04.2]} 18... c6 {[%clk 0:01:29.1]} 19. Bf2 {[%clk 0:02:02.8]} 19...
d5 {[%clk 0:01:21.6]} 20. cxd5 {[%clk 0:02:01.7]} 20... cxd5 {[%clk 0:01:22.5]}
21. Qb5 {[%clk 0:01:53]} 21... g5 {[%clk 0:01:17.4]} 22. Qc6 {[%clk 0:01:50.2]}
22... Kf7 {[%clk 0:01:12.2]} 23. Nf3 {[%clk 0:01:49.5]} 23... Ng4 {[%clk
0:00:39.9]} 24. h3 {[%clk 0:01:34.7]} 24... Nxf2 {[%clk 0:00:39.5]} 25. Kxf2
{[%clk 0:01:35.6]} 25... Bd6 {[%clk 0:00:32.1]} 26. fxg5 {[%clk 0:01:32.7]}
26... hxg5 {[%clk 0:00:32.7]} 27. Nxg5+ {[%clk 0:01:32]} 27... Qxg5 {[%clk
0:00:29.5]} 28. Qxd6 {[%clk 0:01:31.5]} 28... Rad8 {[%clk 0:00:25.4]} 29. Rc7+
{[%clk 0:01:30.7]} 29... Kg8 {[%clk 0:00:22.1]} 30. Qxe6+ {[%clk 0:01:30.7]}
30... Kh8 {[%clk 0:00:22.4]} 31. Qe5+ {[%clk 0:01:23.8]} 31... Kg8 {[%clk
0:00:22.2]} 32. h4 {[%clk 0:01:18.8]} 32... Qh6 {[%clk 0:00:21.7]} 33. Qe7
{[%clk 0:01:11.6]} 33... f4 {[%clk 0:00:20.6]} 34. Qg5+ {[%clk 0:01:05.8]} 34...
Qxg5 {[%clk 0:00:20.7]} 35. hxg5 {[%clk 0:01:06.7]} 35... fxg3+ {[%clk
0:00:18.6]} 36. Kxg3 {[%clk 0:01:07.6]} 36... Rde8 {[%clk 0:00:18.9]} 37. Rd2
{[%clk 0:01:05.4]} 37... Re4 {[%clk 0:00:17.8]} 38. Rxa7 {[%clk 0:01:04.5]}
38... Rf5 {[%clk 0:00:18.1]} 39. Rc2 {[%clk 0:00:58.5]} 39... Rxg5+ {[%clk
0:00:18.1]} 40. Kf3 {[%clk 0:00:58.4]} 40... Rf5+ {[%clk 0:00:18]} 41. Kg2
{[%clk 0:00:55.1]} 41... Rxd4 {[%clk 0:00:16.1]} 42. Rc8+ {[%clk 0:00:54.1]}
42... Rf8 {[%clk 0:00:16.4]} 43. Rcc7 {[%clk 0:00:52.4]} 43... Rf5 {[%clk
0:00:15.2]} 44. Rg7+ {[%clk 0:00:51.5]} 44... Kf8 {[%clk 0:00:15.6]} 45. Rgb7
{[%clk 0:00:49.4]} 45... Kg8 {[%clk 0:00:15.4]} 46. Rxb6 {[%clk 0:00:43.5]}
46... Rg4+ {[%clk 0:00:15.3]} 47. Kh3 {[%clk 0:00:43.1]} 47... Rg1 {[%clk
0:00:15]} 48. Rb8+ {[%clk 0:00:40.3]} 48... Rf8 {[%clk 0:00:14.8]} 49. Rxf8+
{[%clk 0:00:40.3]} 49... Kxf8 {[%clk 0:00:15.7]} 50. Rd7 {[%clk 0:00:38.8]}
50... Rb1 {[%clk 0:00:15]} 51. b3 {[%clk 0:00:35.1]} 51... Rb2 {[%clk
0:00:15.3]} 52. Rxd5 {[%clk 0:00:32.1]} 52... Rxa2 {[%clk 0:00:15.2]} 53. e3
{[%clk 0:00:32]} 53... Rb2 {[%clk 0:00:14.4]} 54. Rd3 {[%clk 0:00:32.1]} 54...
Ke7 {[%clk 0:00:14.3]} 55. Kg4 {[%clk 0:00:32.6]} 55... Ke6 {[%clk 0:00:14.9]}
56. Kf4 {[%clk 0:00:32.9]} 56... Rb1 {[%clk 0:00:15.2]} 57. Ke4 {[%clk
0:00:32.9]} 57... Rh1 {[%clk 0:00:14.7]} 58. Kd4 {[%clk 0:00:32.9]} 58... Rh4+
{[%clk 0:00:14.6]} 59. e4 {[%clk 0:00:32.8]} 59... Rh8 {[%clk 0:00:14.3]} 60. b4
{[%clk 0:00:32.4]} 60... Rb8 {[%clk 0:00:13.8]} 61. Rb3 {[%clk 0:00:31.5]} 61...
Rb5 {[%clk 0:00:13.2]} 62. Kc4 {[%clk 0:00:31.2]} 62... Re5 {[%clk 0:00:12.5]}
63. Re3 {[%clk 0:00:29.2]} 63... Kd6 {[%clk 0:00:12]} 64. Kd4 {[%clk 0:00:21.9]}
64... Rb5 {[%clk 0:00:11]} 65. e5+ {[%clk 0:00:18.3]} 65... Kc6 {[%clk
0:00:11.3]} 66. Kc4 {[%clk 0:00:17.9]} 66... Rb7 {[%clk 0:00:11.6]} 67. e6
{[%clk 0:00:17.9]} 67... Re7 {[%clk 0:00:12]} 68. b5+ {[%clk 0:00:17.7]} 68...
Kb6 {[%clk 0:00:12]} 69. Kb4 {[%clk 0:00:18]} 69... Re8 {[%clk 0:00:12]} 70. e7
{[%clk 0:00:17.9]} 70... Kc7 {[%clk 0:00:12.5]} 71. Kc5 {[%clk 0:00:18.2]} 71...
Kd7 {[%clk 0:00:12.7]} 72. Kb6 {[%clk 0:00:17.5]} 72... Rc8 {[%clk 0:00:12.5]}
73. Ka6 {[%clk 0:00:15.5]} 73... Ra8+ {[%clk 0:00:12.4]} 74. Kb7 {[%clk
0:00:15.4]} 74... Re8 {[%clk 0:00:12.9]} 75. Ka7 {[%clk 0:00:15.6]} 75... Kd6
{[%clk 0:00:12.9]} 76. b6 {[%clk 0:00:15.4]} 76... Kc6 {[%clk 0:00:12.9]} 77. b7
{[%clk 0:00:15.5]} 77... Kc7 {[%clk 0:00:13.2]} 78. Rc3+ {[%clk 0:00:14.9]}
78... Kd6 {[%clk 0:00:13.3]} 79. Rc8 {[%clk 0:00:14.2]} 79... Rxe7 {[%clk
0:00:13.2]} 80. Ka8 {[%clk 0:00:14.4]} 80... Re1 {[%clk 0:00:11.8]} 81. b8=Q+
{[%clk 0:00:12.8]} 81... Kd7 {[%clk 0:00:11.9]} 82. Qb7+ {[%clk 0:00:12.9]} 1-0

[Event "*** Titled Tuesday Blitz"]
[Site "Chess.com"]
[Date "2020.03.03"]
[Round "2"]
[White "Msb2"]
[Black "mitrabhaa"]
[Result "1/2-1/2"]
[WhiteElo "2870"]
[BlackElo "2626"]
[TimeControl "180+1"]
[EndTime "9:21:15 PST"]
[Termination "Game drawn - insufficient material"]

1. d4 {[%clk 0:03:00.9]} 1... Nf6 {[%clk 0:02:59.7]} 2. Nf3 {[%clk 0:03:01.3]}
2... b6 {[%clk 0:02:57.2]} 3. Bf4 {[%clk 0:03:01]} 3... Bb7 {[%clk 0:02:56.8]}
4. e3 {[%clk 0:03:01.1]} 4... g6 {[%clk 0:02:57.1]} 5. a4 {[%clk 0:02:58.2]}
5... a6 {[%clk 0:02:56.2]} 6. Be2 {[%clk 0:02:54.5]} 6... Bg7 {[%clk 0:02:56.1]}
7. O-O {[%clk 0:02:54.8]} 7... O-O {[%clk 0:02:56.3]} 8. c4 {[%clk 0:02:53.6]}
8... d6 {[%clk 0:02:54.9]} 9. a5 {[%clk 0:02:51.7]} 9... Nbd7 {[%clk 0:02:52.7]}
10. axb6 {[%clk 0:02:50.5]} 10... cxb6 {[%clk 0:02:52.6]} 11. h3 {[%clk
0:02:51]} 11... Qc7 {[%clk 0:02:52]} 12. Nbd2 {[%clk 0:02:51]} 12... e5 {[%clk
0:02:51.9]} 13. Bh2 {[%clk 0:02:51]} 13... Ne4 {[%clk 0:02:51.9]} 14. Rc1 {[%clk
0:02:44.5]} 14... Rac8 {[%clk 0:02:49.1]} 15. Qa4 {[%clk 0:02:36.6]} 15... Nxd2
{[%clk 0:02:48.3]} 16. Nxd2 {[%clk 0:02:37.5]} 16... exd4 {[%clk 0:02:47.7]} 17.
exd4 {[%clk 0:02:31.6]} 17... Bxd4 {[%clk 0:02:47.3]} 18. Qa3 {[%clk 0:02:31.4]}
18... Be5 {[%clk 0:02:42.6]} 19. Bxe5 {[%clk 0:02:24.5]} 19... dxe5 {[%clk
0:02:41.7]} 20. b4 {[%clk 0:02:22.9]} 20... a5 {[%clk 0:02:41.3]} 21. bxa5
{[%clk 0:02:13.3]} 21... bxa5 {[%clk 0:02:41.2]} 22. c5 {[%clk 0:02:13.9]} 22...
Bd5 {[%clk 0:02:24.5]} 23. c6 {[%clk 0:02:03.8]} 23... Bxc6 {[%clk 0:02:12.1]}
24. Ba6 {[%clk 0:01:45]} 24... Rb8 {[%clk 0:02:06.6]} 25. Qc3 {[%clk 0:01:09.3]}
25... Rb6 {[%clk 0:02:02.7]} 26. Be2 {[%clk 0:01:09.4]} 26... Qb7 {[%clk
0:01:48.9]} 27. Nc4 {[%clk 0:01:08.7]} 27... Rb3 {[%clk 0:01:37.5]} 28. Qa1
{[%clk 0:00:52.6]} 28... Qb4 {[%clk 0:01:12.8]} 29. Nxa5 {[%clk 0:00:47.4]}
29... Bxg2 {[%clk 0:00:59]} 30. Kxg2 {[%clk 0:00:37.8]} 30... Ra3 {[%clk
0:00:57.9]} 31. Qb1 {[%clk 0:00:13.6]} 31... Qxb1 {[%clk 0:00:52]} 32. Rxb1
{[%clk 0:00:14.5]} 32... Rxa5 {[%clk 0:00:52.1]} 33. Rb7 {[%clk 0:00:14.3]}
33... Nf6 {[%clk 0:00:52.1]} 34. Bc4 {[%clk 0:00:14]} 34... Ra4 {[%clk
0:00:51.3]} 35. Rc1 {[%clk 0:00:13]} 35... Kg7 {[%clk 0:00:49.7]} 36. Bb3 {[%clk
0:00:13.3]} 36... Rf4 {[%clk 0:00:49]} 37. Re7 {[%clk 0:00:10]} 37... e4 {[%clk
0:00:42.3]} 38. Rcc7 {[%clk 0:00:07]} 38... Nh5 {[%clk 0:00:41.2]} 39. Bd1
{[%clk 0:00:07.2]} 39... Rf5 {[%clk 0:00:36.5]} 40. Bxh5 {[%clk 0:00:06.6]}
40... Rxh5 {[%clk 0:00:36.3]} 41. Rxe4 {[%clk 0:00:07.1]} 41... Rf5 {[%clk
0:00:36.9]} 42. Ree7 {[%clk 0:00:07]} 42... Ra8 {[%clk 0:00:37.4]} 43. Re3
{[%clk 0:00:07.1]} 43... Ra2 {[%clk 0:00:37.3]} 44. Rf3 {[%clk 0:00:07.1]} 44...
Rxf3 {[%clk 0:00:37.6]} 45. Kxf3 {[%clk 0:00:08]} 45... h5 {[%clk 0:00:38.3]}
46. Kg2 {[%clk 0:00:08.4]} 46... Ra3 {[%clk 0:00:38.8]} 47. h4 {[%clk
0:00:08.8]} 47... Ra4 {[%clk 0:00:37.9]} 48. Kg3 {[%clk 0:00:09.4]} 48... Rg4+
{[%clk 0:00:38.1]} 49. Kh3 {[%clk 0:00:10]} 49... Rg1 {[%clk 0:00:38.4]} 50. f3
{[%clk 0:00:10]} 50... Kf6 {[%clk 0:00:38]} 51. Rc5 {[%clk 0:00:10.1]} 51... Re1
{[%clk 0:00:37.8]} 52. Kg3 {[%clk 0:00:10.5]} 52... Re5 {[%clk 0:00:37.4]} 53.
Rc6+ {[%clk 0:00:10.9]} 53... Kf5 {[%clk 0:00:37.5]} 54. Rc7 {[%clk 0:00:11.8]}
54... f6 {[%clk 0:00:38]} 55. Rc4 {[%clk 0:00:12]} 55... g5 {[%clk 0:00:37.4]}
56. Ra4 {[%clk 0:00:11.7]} 56... Rb5 {[%clk 0:00:36.4]} 57. Rc4 {[%clk
0:00:11.9]} 57... Kg6 {[%clk 0:00:36.4]} 58. Ra4 {[%clk 0:00:11]} 58... Rb3
{[%clk 0:00:36.6]} 59. hxg5 {[%clk 0:00:10.6]} 59... fxg5 {[%clk 0:00:35.7]} 60.
Ra6+ {[%clk 0:00:10.9]} 60... Kf7 {[%clk 0:00:35.7]} 61. Ra7+ {[%clk 0:00:11.1]}
61... Ke6 {[%clk 0:00:34.5]} 62. Ra6+ {[%clk 0:00:11.5]} 62... Ke7 {[%clk
0:00:34.4]} 63. Ra7+ {[%clk 0:00:11.6]} 63... Kd6 {[%clk 0:00:34.5]} 64. Ra6+
{[%clk 0:00:12]} 64... Kd7 {[%clk 0:00:32.6]} 65. Ra7+ {[%clk 0:00:10.3]} 65...
Kc6 {[%clk 0:00:32.5]} 66. Rh7 {[%clk 0:00:05.7]} 66... h4+ {[%clk 0:00:29.5]}
67. Kg4 {[%clk 0:00:06.3]} 67... Rb5 {[%clk 0:00:28.9]} 68. f4 {[%clk
0:00:06.9]} 68... gxf4 {[%clk 0:00:28.6]} 69. Rxh4 {[%clk 0:00:07.1]} 69... Rb4
{[%clk 0:00:26.8]} 70. Kf3 {[%clk 0:00:07.5]} 70... Kd5 {[%clk 0:00:27.1]} 71.
Rxf4 {[%clk 0:00:08]} 71... Rb3+ {[%clk 0:00:27.8]} 72. Kg4 {[%clk 0:00:08.5]}
72... Ke5 {[%clk 0:00:28.5]} 73. Rf5+ {[%clk 0:00:09]} 73... Ke6 {[%clk
0:00:28.3]} 74. Rf4 {[%clk 0:00:09.9]} 74... Rb1 {[%clk 0:00:28.5]} 75. Re4+
{[%clk 0:00:10.4]} 75... Kf6 {[%clk 0:00:28.5]} 76. Rf4+ {[%clk 0:00:11.3]}
76... Kg6 {[%clk 0:00:28.6]} 77. Re4 {[%clk 0:00:11.3]} 77... Rf1 {[%clk
0:00:28.4]} 78. Re6+ {[%clk 0:00:11]} 78... Kf7 {[%clk 0:00:28.3]} 79. Rc6
{[%clk 0:00:11.7]} 79... Rg1+ {[%clk 0:00:29.2]} 80. Kf5 {[%clk 0:00:11.8]}
80... Ke7 {[%clk 0:00:30.1]} 81. Ra6 {[%clk 0:00:11.3]} 81... Rh1 {[%clk
0:00:28.9]} 82. Ke5 {[%clk 0:00:11.6]} 82... Rh5+ {[%clk 0:00:28.8]} 83. Kf4
{[%clk 0:00:12.1]} 83... Rh4+ {[%clk 0:00:29]} 84. Ke5 {[%clk 0:00:12.1]} 84...
Rh5+ {[%clk 0:00:27.8]} 85. Kf4 {[%clk 0:00:12.3]} 85... Rh4+ {[%clk 0:00:25]}
86. Kg5 {[%clk 0:00:12.5]} 86... Rb4 {[%clk 0:00:25.1]} 87. Ra7+ {[%clk
0:00:12.6]} 87... Ke6 {[%clk 0:00:25.2]} 88. Ra6+ {[%clk 0:00:12.9]} 88... Ke5
{[%clk 0:00:25.2]} 89. Ra5+ {[%clk 0:00:13.1]} 89... Ke4 {[%clk 0:00:25.6]} 90.
Ra8 {[%clk 0:00:13]} 90... Rd4 {[%clk 0:00:26.1]} 91. Re8+ {[%clk 0:00:12.5]}
91... Kd5 {[%clk 0:00:27]} 92. Rd8+ {[%clk 0:00:12.6]} 92... Kc4 {[%clk
0:00:27.9]} 93. Rxd4+ {[%clk 0:00:12.6]} 93... Kxd4 {[%clk 0:00:28.8]} 1/2-1/2

[Event "*** Titled Tuesday Blitz"]
[Site "Chess.com"]
[Date "2020.03.03"]
[Round "3"]
[White "Nalatac"]
[Black "LarissaSteenbekkers"]
[Result "1-0"]
[WhiteElo "2276"]
[BlackElo "1834"]
[TimeControl "180+1"]
[EndTime "9:25:07 PST"]
[Termination "Nalatac won by resignation"]

1. e4 {[%clk 0:03:00.9]} 1... e6 {[%clk 0:02:26.6]} 2. d4 {[%clk 0:03:00.2]}
2... d5 {[%clk 0:02:25.4]} 3. Nd2 {[%clk 0:03:00.7]} 3... Nf6 {[%clk 0:02:23.6]}
4. Bd3 {[%clk 0:02:56.4]} 4... c5 {[%clk 0:02:20.9]} 5. c3 {[%clk 0:02:56.7]}
5... Nc6 {[%clk 0:02:19]} 6. Ngf3 {[%clk 0:02:45.8]} 6... dxe4 {[%clk
0:02:16.8]} 7. Nxe4 {[%clk 0:02:45.4]} 7... cxd4 {[%clk 0:02:15.6]} 8. Nxf6+
{[%clk 0:02:32.5]} 8... gxf6 {[%clk 0:02:13.4]} 9. cxd4 {[%clk 0:02:32.9]} 9...
Bb4+ {[%clk 0:02:10.8]} 10. Bd2 {[%clk 0:02:32.9]} 10... O-O {[%clk 0:02:06.1]}
11. O-O {[%clk 0:02:23]} 11... Bxd2 {[%clk 0:02:03.5]} 12. Qxd2 {[%clk 0:02:23]}
12... b6 {[%clk 0:02:03.2]} 13. Qh6 {[%clk 0:02:08.6]} 13... f5 {[%clk
0:01:52.8]} 14. Ng5 {[%clk 0:02:08.2]} 1-0